[Event "Titled Tuesday Blitz August 31 2021"]
[White "deribas12345"]
[Black "Siva Mahadevan"]
[BlackFideId "25043153"]
[WhiteElo "2585"]
[BlackElo "2203"]
[Result "0-1"]
[Round "09"]
[TimeControl "180+1"]
[Date "2021.08.31"]
[WhiteClock "0:00:04"]
[BlackClock "0:00:35"]

1. d4 {[%clk 0:03:00]}  Nf6 {[%clk 0:03:00]} 2. c4 {[%clk 0:03:00]}  e6 {[%clk 0:03:00]} 3. Nc3 {[%clk 0:03:00]}  Bb4 {[%clk 0:03:01]} 4. a3 {[%clk 0:03:00]}  Bxc3+ {[%clk 0:03:00]} 5. bxc3 {[%clk 0:03:01]}  c5 {[%clk 0:03:01]} 6. f3 {[%clk 0:03:01]}  d5 {[%clk 0:02:56]} 7. e3 {[%clk 0:03:01]}  O-O {[%clk 0:02:55]} 8. Bd3 {[%clk 0:03:01]}  Nc6 {[%clk 0:02:55]} 9. Ne2 {[%clk 0:02:59]}  e5 {[%clk 0:02:55]} 10. cxd5 {[%clk 0:02:58]}  Qxd5 {[%clk 0:02:54]} 11. e4 {[%clk 0:02:58]}  Qd6 {[%clk 0:02:54]} 12. d5 {[%clk 0:02:58]}  Ne7 {[%clk 0:02:54]} 13. O-O {[%clk 0:02:53]}  Ng6 {[%clk 0:02:53]} 14. c4 {[%clk 0:02:40]}  b6 {[%clk 0:02:52]} 15. Ra2 {[%clk 0:02:38]}  Nh5 {[%clk 0:02:46]} 16. g3 {[%clk 0:02:33]}  Bh3 {[%clk 0:02:45]} 17. Rf2 {[%clk 0:02:27]}  Bd7 {[%clk 0:02:42]} 18. Qd2 {[%clk 0:02:19]}  h6 {[%clk 0:02:33]} 19. f4 {[%clk 0:02:14]}  Nf6 {[%clk 0:02:14]} 20. f5 {[%clk 0:01:53]}  Ne7 {[%clk 0:02:12]} 21. g4 {[%clk 0:01:47]}  Nh7 {[%clk 0:01:47]} 22. h4 {[%clk 0:01:46]}  f6 {[%clk 0:01:47]} 23. Ng3 {[%clk 0:01:43]}  Nc8 {[%clk 0:01:45]} 24. Rg2 {[%clk 0:01:38]}  Qe7 {[%clk 0:01:45]} 25. Nf1 {[%clk 0:01:33]}  Nd6 {[%clk 0:01:45]} 26. Nh2 {[%clk 0:01:30]}  Bc8 {[%clk 0:01:40]} 27. Nf3 {[%clk 0:01:30]}  Ba6 {[%clk 0:01:39]} 28. g5 {[%clk 0:01:24]}  Bxc4 {[%clk 0:01:08]} 29. gxh6 {[%clk 0:01:19]}  Rf7 {[%clk 0:01:04]} 30. Bxc4 {[%clk 0:01:12]}  Nxc4 {[%clk 0:01:05]} 31. Qd3 {[%clk 0:01:09]}  Nd6 {[%clk 0:01:04]} 32. hxg7 {[%clk 0:01:06]}  Rxg7 {[%clk 0:01:02]} 33. Rxg7+ {[%clk 0:01:05]}  Kxg7 {[%clk 0:01:03]} 34. h5 {[%clk 0:00:57]}  Kh8 {[%clk 0:01:03]} 35. Nh4 {[%clk 0:00:57]}  Kg7 {[%clk 0:00:49]} 36. Rg2+ {[%clk 0:00:51]}  Kf7 {[%clk 0:00:48]} 37. Ng6 {[%clk 0:00:46]}  Qd7 {[%clk 0:00:46]} 38. h6 {[%clk 0:00:46]}  Rg8 {[%clk 0:00:43]} 39. Qf3 {[%clk 0:00:44]}  Ke8 {[%clk 0:00:42]} 40. Nxe5 {[%clk 0:00:37]}  Rxg2+ {[%clk 0:00:42]} 41. Qxg2 {[%clk 0:00:37]}  fxe5 {[%clk 0:00:42]} 42. Qg8+ {[%clk 0:00:32]}  Nf8 {[%clk 0:00:42]} 43. Bb2 {[%clk 0:00:20]}  Nxe4 {[%clk 0:00:34]} 44. Bxe5 {[%clk 0:00:17]}  Qxf5 {[%clk 0:00:34]} 45. Bg7 {[%clk 0:00:04]}  Qf2+ {[%clk 0:00:34]} 46. Kh1 {[%clk 0:00:04]}  Ng3# {[%clk 0:00:35]} 0-1


[Site "https://www.chess.com"]

[Event "Titled Tuesday Blitz August 31 2021"]
[White "Alavkin, Arseny"]
[Black "FGHSMN"]
[WhiteFideId "4120612"]
[WhiteElo "2391"]
[BlackElo "2664"]
[Result "1-0"]
[Round "10"]
[TimeControl "180+1"]
[Date "2021.08.31"]
[WhiteClock "0:02:05"]
[BlackClock "0:01:18"]

1. d4 {[%clk 0:02:50]}  Nf6 {[%clk 0:02:58]} 2. Bf4 {[%clk 0:02:50]}  e6 {[%clk 0:02:59]} 3. e3 {[%clk 0:02:49]}  c5 {[%clk 0:02:59]} 4. c3 {[%clk 0:02:49]}  d6 {[%clk 0:02:58]} 5. Nd2 {[%clk 0:02:49]}  Nc6 {[%clk 0:02:57]} 6. h3 {[%clk 0:02:50]}  Be7 {[%clk 0:02:57]} 7. Ngf3 {[%clk 0:02:50]}  O-O {[%clk 0:02:58]} 8. Be2 {[%clk 0:02:51]}  b6 {[%clk 0:02:58]} 9. O-O {[%clk 0:02:52]}  Bb7 {[%clk 0:02:59]} 10. Re1 {[%clk 0:02:52]}  Qc7 {[%clk 0:02:59]} 11. a4 {[%clk 0:02:53]}  Rad8 {[%clk 0:02:58]} 12. Bh2 {[%clk 0:02:53]}  Rfe8 {[%clk 0:02:59]} 13. Bf1 {[%clk 0:02:53]}  Bf8 {[%clk 0:02:58]} 14. Nc4 {[%clk 0:02:54]}  e5 {[%clk 0:02:57]} 15. dxe5 {[%clk 0:02:52]}  dxe5 {[%clk 0:02:57]} 16. Qc2 {[%clk 0:02:53]}  g6 {[%clk 0:02:36]} 17. Rad1 {[%clk 0:02:52]}  Rxd1 {[%clk 0:02:35]} 18. Rxd1 {[%clk 0:02:53]}  Bg7 {[%clk 0:02:36]} 19. Nd6 {[%clk 0:02:45]}  Re7 {[%clk 0:02:29]} 20. Bc4 {[%clk 0:02:44]}  Ba8 {[%clk 0:02:19]} 21. Nxf7 {[%clk 0:02:14]}  Rxf7 {[%clk 0:02:17]} 22. Ng5 {[%clk 0:02:15]}  Nd8 {[%clk 0:02:18]} 23. Rxd8+ {[%clk 0:02:14]}  Qxd8 {[%clk 0:02:19]} 24. Nxf7 {[%clk 0:02:15]}  Qe7 {[%clk 0:02:16]} 25. Nxe5+ {[%clk 0:02:13]}  Kf8 {[%clk 0:02:15]} 26. Qd3 {[%clk 0:02:12]}  Be4 {[%clk 0:01:40]} 27. Qd2 {[%clk 0:02:08]}  Bb7 {[%clk 0:01:33]} 28. Nxg6+ {[%clk 0:02:06]}  hxg6 {[%clk 0:01:28]} 29. Bd6 {[%clk 0:02:06]}  Ne4 {[%clk 0:01:29]} 30. Bxe7+ {[%clk 0:02:07]}  Kxe7 {[%clk 0:01:30]} 31. Qe2 {[%clk 0:02:07]}  Nd6 {[%clk 0:01:29]} 32. Qg4 {[%clk 0:02:07]}  Nxc4 {[%clk 0:01:25]} 33. Qxc4 {[%clk 0:02:07]}  Bf6 {[%clk 0:01:21]} 34. Qg8 {[%clk 0:02:05]}  Be4 {[%clk 0:01:18]} 35. Qb8 {[%clk 0:02:05]} 1-0


[Site "https://www.chess.com"]

[Event "Titled Tuesday Blitz August 31 2021"]
[White "Al-Tarboush, Ward"]
[Black "Martinovsky, Ian"]
[WhiteFideId "7601450"]
[BlackFideId "2603314"]
[WhiteElo "2319"]
[BlackElo "2256"]
[Result "0-1"]
[Round "10"]
[TimeControl "180+1"]
[Date "2021.08.31"]
[WhiteClock "0:01:42"]
[BlackClock "0:01:34"]

1. e4 {[%clk 0:03:00]}  d5 {[%clk 0:02:58]} 2. exd5 {[%clk 0:03:00]}  Qxd5 {[%clk 0:02:58]} 3. Nc3 {[%clk 0:02:55]}  Qd6 {[%clk 0:02:58]} 4. d4 {[%clk 0:02:56]}  Nf6 {[%clk 0:02:55]} 5. Nf3 {[%clk 0:02:56]}  Bg4 {[%clk 0:02:48]} 6. h3 {[%clk 0:02:56]}  Bh5 {[%clk 0:02:46]} 7. Bc4 {[%clk 0:02:55]}  e6 {[%clk 0:02:44]} 8. g4 {[%clk 0:02:55]}  Bg6 {[%clk 0:02:42]} 9. Ne5 {[%clk 0:02:55]}  Nbd7 {[%clk 0:02:39]} 10. Bf4 {[%clk 0:02:52]}  Nxe5 {[%clk 0:02:37]} 11. Bxe5 {[%clk 0:02:51]}  Qb4 {[%clk 0:02:34]} 12. Bb3 {[%clk 0:02:41]}  O-O-O {[%clk 0:02:32]} 13. Qd2 {[%clk 0:02:37]}  Nd7 {[%clk 0:02:29]} 14. Bg3 {[%clk 0:02:35]}  h5 {[%clk 0:02:26]} 15. O-O-O {[%clk 0:02:34]}  Nc5 {[%clk 0:02:23]} 16. Qf4 {[%clk 0:02:31]}  Bd6 {[%clk 0:02:20]} 17. Qf3 {[%clk 0:02:27]}  hxg4 {[%clk 0:02:18]} 18. hxg4 {[%clk 0:02:25]}  Rxh1 {[%clk 0:02:16]} 19. Rxh1 {[%clk 0:02:21]}  Bxg3 {[%clk 0:02:11]} 20. dxc5 {[%clk 0:02:21]}  Bf4+ {[%clk 0:02:09]} 21. Kb1 {[%clk 0:02:20]}  c6 {[%clk 0:02:07]} 22. a3 {[%clk 0:02:18]}  Qxb3 {[%clk 0:02:04]} 23. Qxf4 {[%clk 0:02:16]}  Qxc2+ {[%clk 0:02:01]} 24. Ka2 {[%clk 0:02:13]}  f6 {[%clk 0:01:56]} 25. Qe3 {[%clk 0:02:08]}  Bf7 {[%clk 0:01:48]} 26. Rc1 {[%clk 0:02:04]}  e5+ {[%clk 0:01:46]} 27. Ka1 {[%clk 0:02:01]}  Qd3 {[%clk 0:01:42]} 28. Ne4 {[%clk 0:01:57]}  Qd5 {[%clk 0:01:39]} 29. Nd6+ {[%clk 0:01:53]}  Rxd6 {[%clk 0:01:36]} 30. Kb1 {[%clk 0:01:42]}  Qd3+ {[%clk 0:01:34]} 0-1


[Site "https://www.chess.com"]

[Event "Titled Tuesday Blitz August 31 2021"]
[White "Arabidze, Meri"]
[Black "Aldokhin, Ivan"]
[WhiteFideId "13604040"]
[BlackFideId "24115720"]
[WhiteElo "2432"]
[BlackElo "2306"]
[Result "1/2-1/2"]
[Round "10"]
[TimeControl "180+1"]
[Date "2021.08.31"]
[WhiteClock "0:00:10"]
[BlackClock "0:00:06"]

1. d4 {[%clk 0:03:00]}  Nf6 {[%clk 0:02:59]} 2. Nf3 {[%clk 0:03:01]}  g6 {[%clk 0:03:00]} 3. g3 {[%clk 0:03:01]}  Bg7 {[%clk 0:03:00]} 4. Bg2 {[%clk 0:03:02]}  O-O {[%clk 0:03:01]} 5. O-O {[%clk 0:03:02]}  d6 {[%clk 0:03:02]} 6. a4 {[%clk 0:03:03]}  Nc6 {[%clk 0:03:01]} 7. a5 {[%clk 0:03:02]}  a6 {[%clk 0:03:00]} 8. Nc3 {[%clk 0:03:02]}  e5 {[%clk 0:02:56]} 9. d5 {[%clk 0:02:55]}  Ne7 {[%clk 0:02:53]} 10. e4 {[%clk 0:02:55]}  Nd7 {[%clk 0:02:52]} 11. Be3 {[%clk 0:02:50]}  h6 {[%clk 0:02:51]} 12. Qd2 {[%clk 0:02:48]}  Kh7 {[%clk 0:02:51]} 13. Nh4 {[%clk 0:02:47]}  f5 {[%clk 0:02:37]} 14. exf5 {[%clk 0:02:47]}  Nxf5 {[%clk 0:02:29]} 15. Nxf5 {[%clk 0:02:40]}  gxf5 {[%clk 0:02:30]} 16. f4 {[%clk 0:02:40]}  Nf6 {[%clk 0:02:21]} 17. fxe5 {[%clk 0:02:30]}  dxe5 {[%clk 0:02:21]} 18. Bc5 {[%clk 0:02:29]}  Rf7 {[%clk 0:01:55]} 19. Rad1 {[%clk 0:02:20]}  Bd7 {[%clk 0:01:28]} 20. d6 {[%clk 0:02:11]}  c6 {[%clk 0:01:22]} 21. b4 {[%clk 0:02:08]}  Ng4 {[%clk 0:01:14]} 22. Qd3 {[%clk 0:01:48]}  Qg5 {[%clk 0:01:10]} 23. h3 {[%clk 0:01:41]}  Nf6 {[%clk 0:01:05]} 24. Qe3 {[%clk 0:01:27]}  Qg6 {[%clk 0:00:46]} 25. Na4 {[%clk 0:01:15]}  Nh5 {[%clk 0:00:28]} 26. Nb6 {[%clk 0:01:12]}  Nxg3 {[%clk 0:00:21]} 27. Nxa8 {[%clk 0:01:02]}  f4 {[%clk 0:00:22]} 28. Qb3 {[%clk 0:00:44]}  Rf5 {[%clk 0:00:12]} 29. Nb6 {[%clk 0:00:40]}  Rg5 {[%clk 0:00:11]} 30. Rf2 {[%clk 0:00:36]}  Be6 {[%clk 0:00:08]} 31. Qf3 {[%clk 0:00:28]}  Nf5 {[%clk 0:00:06]} 32. Qe4 {[%clk 0:00:19]}  f3 {[%clk 0:00:06]} 33. Qxf3 {[%clk 0:00:15]}  Nh4 {[%clk 0:00:06]} 34. Qe2 {[%clk 0:00:12]}  Bxh3 {[%clk 0:00:05]} 35. Rd2 {[%clk 0:00:12]}  e4 {[%clk 0:00:04]} 36. Be3 {[%clk 0:00:11]}  Nf3+ {[%clk 0:00:04]} 37. Kf1 {[%clk 0:00:07]}  Rxg2 {[%clk 0:00:04]} 38. Rxg2 {[%clk 0:00:07]}  Qf5 {[%clk 0:00:04]} 39. Qf2 {[%clk 0:00:07]}  Nxd2+ {[%clk 0:00:04]} 40. Bxd2 {[%clk 0:00:07]}  Bxg2+ {[%clk 0:00:04]} 41. Kxg2 {[%clk 0:00:08]}  Qg4+ {[%clk 0:00:05]} 42. Qg3 {[%clk 0:00:08]}  Qe2+ {[%clk 0:00:05]} 43. Kh3 {[%clk 0:00:09]}  Qxd2 {[%clk 0:00:05]} 44. d7 {[%clk 0:00:09]}  e3 {[%clk 0:00:05]} 45. Qf3 {[%clk 0:00:08]}  e2 {[%clk 0:00:03]} 46. Qf5+ {[%clk 0:00:08]}  Kh8 {[%clk 0:00:03]} 47. Qe6 {[%clk 0:00:07]}  e1=Q {[%clk 0:00:03]} 48. Qxe1 {[%clk 0:00:07]}  Qxe1 {[%clk 0:00:04]} 49. d8=Q+ {[%clk 0:00:08]}  Kh7 {[%clk 0:00:05]} 50. Qd3+ {[%clk 0:00:08]}  Kh8 {[%clk 0:00:05]} 51. Qd8+ {[%clk 0:00:09]}  Kh7 {[%clk 0:00:05]} 52. Qd3+ {[%clk 0:00:09]}  Kh8 {[%clk 0:00:06]} 53. Qd8+ {[%clk 0:00:10]} 1/2-1/2


[Site "https://www.chess.com"]

[Event "Titled Tuesday Blitz August 31 2021"]
[White "Bortnyk, Olexandr"]
[Black "Ponikarovsky, Alexey"]
[WhiteFideId "14120828"]
[BlackFideId "4122887"]
[WhiteElo "2723"]
[BlackElo "1944"]
[Result "1-0"]
[Round "10"]
[TimeControl "180+1"]
[Date "2021.08.31"]
[WhiteClock "0:02:26"]
[BlackClock "0:02:31"]

1. d4 {[%clk 0:03:00]}  d5 {[%clk 0:02:59]} 2. Nc3 {[%clk 0:03:00]}  e6 {[%clk 0:03:00]} 3. Bf4 {[%clk 0:02:56]}  Nf6 {[%clk 0:03:00]} 4. Nb5 {[%clk 0:02:56]}  Na6 {[%clk 0:02:59]} 5. e3 {[%clk 0:02:56]}  c6 {[%clk 0:02:58]} 6. Nc3 {[%clk 0:02:56]}  Nc7 {[%clk 0:02:57]} 7. Nf3 {[%clk 0:02:56]}  Bd6 {[%clk 0:02:57]} 8. Ne5 {[%clk 0:02:57]}  O-O {[%clk 0:02:56]} 9. Qf3 {[%clk 0:02:54]}  Nce8 {[%clk 0:02:52]} 10. Bd3 {[%clk 0:02:49]}  Qc7 {[%clk 0:02:52]} 11. Qh3 {[%clk 0:02:44]}  g6 {[%clk 0:02:49]} 12. Bh6 {[%clk 0:02:41]}  Ng7 {[%clk 0:02:49]} 13. f4 {[%clk 0:02:41]}  a6 {[%clk 0:02:42]} 14. g4 {[%clk 0:02:26]}  b5 {[%clk 0:02:41]} 15. g5 {[%clk 0:02:27]}  Ne4 {[%clk 0:02:38]} 16. Bxe4 {[%clk 0:02:25]}  dxe4 {[%clk 0:02:37]} 17. Nxe4 {[%clk 0:02:26]}  Be7 {[%clk 0:02:32]} 18. Bxg7 {[%clk 0:02:25]}  Kxg7 {[%clk 0:02:32]} 19. Qh6+ {[%clk 0:02:25]}  Kh8 {[%clk 0:02:31]} 20. Nf6 {[%clk 0:02:26]} 1-0


[Site "https://www.chess.com"]

[Event "Titled Tuesday Blitz August 31 2021"]
[White "Dang, Hoang Son"]
[Black "Gelman, Alexander"]
[WhiteFideId "12402435"]
[BlackFideId "4118316"]
[WhiteElo "2248"]
[BlackElo "2375"]
[Result "1-0"]
[Round "10"]
[TimeControl "180+1"]
[Date "2021.08.31"]
[WhiteClock "0:00:07"]
[BlackClock "0:00:05"]

1. d4 {[%clk 0:03:00]}  Nf6 {[%clk 0:02:59]} 2. c4 {[%clk 0:03:00]}  c5 {[%clk 0:02:59]} 3. d5 {[%clk 0:03:00]}  b5 {[%clk 0:03:00]} 4. cxb5 {[%clk 0:03:00]}  a6 {[%clk 0:03:00]} 5. bxa6 {[%clk 0:03:01]}  e6 {[%clk 0:03:00]} 6. Nc3 {[%clk 0:03:02]}  exd5 {[%clk 0:03:00]} 7. Nxd5 {[%clk 0:02:59]}  Nxa6 {[%clk 0:03:01]} 8. e4 {[%clk 0:02:58]}  Nxd5 {[%clk 0:03:00]} 9. exd5 {[%clk 0:02:57]}  Nb4 {[%clk 0:03:01]} 10. Bc4 {[%clk 0:02:51]}  Qe7+ {[%clk 0:03:00]} 11. Kf1 {[%clk 0:02:50]}  Ba6 {[%clk 0:02:09]} 12. Bxa6 {[%clk 0:02:44]}  Rxa6 {[%clk 0:02:10]} 13. a3 {[%clk 0:02:40]}  Qe4 {[%clk 0:02:05]} 14. Bg5 {[%clk 0:01:57]}  f6 {[%clk 0:01:56]} 15. axb4 {[%clk 0:01:12]}  Rxa1 {[%clk 0:01:55]} 16. Qxa1 {[%clk 0:01:12]}  fxg5 {[%clk 0:01:51]} 17. Qe1 {[%clk 0:01:07]}  Qxe1+ {[%clk 0:01:43]} 18. Kxe1 {[%clk 0:01:08]}  cxb4 {[%clk 0:01:18]} 19. Nf3 {[%clk 0:01:09]}  Be7 {[%clk 0:01:17]} 20. Kd2 {[%clk 0:00:57]}  Bf6 {[%clk 0:01:15]} 21. b3 {[%clk 0:00:52]}  Ke7 {[%clk 0:01:14]} 22. Rc1 {[%clk 0:00:35]}  Ra8 {[%clk 0:01:08]} 23. Kd3 {[%clk 0:00:34]}  Kd6 {[%clk 0:01:07]} 24. Rc4 {[%clk 0:00:31]}  Ra2 {[%clk 0:01:01]} 25. Nd2 {[%clk 0:00:29]}  Kxd5 {[%clk 0:00:27]} 26. Rxb4 {[%clk 0:00:29]}  h5 {[%clk 0:00:22]} 27. Rb5+ {[%clk 0:00:27]}  Kc6 {[%clk 0:00:22]} 28. Rf5 {[%clk 0:00:27]}  d5 {[%clk 0:00:20]} 29. f4 {[%clk 0:00:17]}  gxf4 {[%clk 0:00:16]} 30. Rxh5 {[%clk 0:00:18]}  Rb2 {[%clk 0:00:14]} 31. Rf5 {[%clk 0:00:17]}  Kd6 {[%clk 0:00:12]} 32. h3 {[%clk 0:00:12]}  Ke6 {[%clk 0:00:12]} 33. Rh5 {[%clk 0:00:13]}  g5 {[%clk 0:00:11]} 34. Rh6 {[%clk 0:00:10]}  Kf5 {[%clk 0:00:11]} 35. Rh7 {[%clk 0:00:11]}  Be5 {[%clk 0:00:10]} 36. Rf7+ {[%clk 0:00:10]}  Ke6 {[%clk 0:00:10]} 37. Rb7 {[%clk 0:00:10]}  Bd6 {[%clk 0:00:08]} 38. Rb6 {[%clk 0:00:09]}  Kd7 {[%clk 0:00:08]} 39. Rb7+ {[%clk 0:00:07]}  Ke6 {[%clk 0:00:08]} 40. Nf3 {[%clk 0:00:05]}  Rxg2 {[%clk 0:00:06]} 41. Nd4+ {[%clk 0:00:05]}  Kf6 {[%clk 0:00:07]} 42. Rb6 {[%clk 0:00:05]}  Ke7 {[%clk 0:00:06]} 43. Nf5+ {[%clk 0:00:05]}  Kf7 {[%clk 0:00:06]} 44. Rxd6 {[%clk 0:00:05]}  Rh2 {[%clk 0:00:06]} 45. Rh6 {[%clk 0:00:04]}  g4 {[%clk 0:00:06]} 46. hxg4 {[%clk 0:00:04]}  Rxh6 {[%clk 0:00:06]} 47. Nxh6+ {[%clk 0:00:05]}  Kg6 {[%clk 0:00:06]} 48. Nf5 {[%clk 0:00:05]}  Kg5 {[%clk 0:00:07]} 49. Ne7 {[%clk 0:00:05]}  Kxg4 {[%clk 0:00:07]} 50. Nxd5 {[%clk 0:00:06]}  f3 {[%clk 0:00:07]} 51. Ne3+ {[%clk 0:00:05]}  Kf4 {[%clk 0:00:07]} 52. Kd4 {[%clk 0:00:06]}  f2 {[%clk 0:00:07]} 53. b4 {[%clk 0:00:06]}  Kg5 {[%clk 0:00:05]} 54. b5 {[%clk 0:00:07]}  Kf6 {[%clk 0:00:05]} 55. b6 {[%clk 0:00:07]} 1-0


[Site "https://www.chess.com"]

[Event "Titled Tuesday Blitz August 31 2021"]
[White "Danielian, Vardan"]
[Black "Srihari L R"]
[WhiteFideId "13301594"]
[BlackFideId "46617116"]
[WhiteElo "2523"]
[BlackElo "2121"]
[Result "1-0"]
[Round "10"]
[TimeControl "180+1"]
[Date "2021.08.31"]
[WhiteClock "0:01:04"]
[BlackClock "0:00:33"]

1. Nf3 {[%clk 0:02:59]}  d6 {[%clk 0:02:58]} 2. g3 {[%clk 0:02:58]}  e5 {[%clk 0:02:58]} 3. Bg2 {[%clk 0:02:59]}  f5 {[%clk 0:02:58]} 4. d3 {[%clk 0:02:59]}  Nf6 {[%clk 0:02:58]} 5. O-O {[%clk 0:02:59]}  Be7 {[%clk 0:02:58]} 6. c4 {[%clk 0:02:59]}  O-O {[%clk 0:02:58]} 7. Nc3 {[%clk 0:02:59]}  Kh8 {[%clk 0:02:56]} 8. b4 {[%clk 0:02:59]}  Qe8 {[%clk 0:02:54]} 9. b5 {[%clk 0:02:58]}  Bd7 {[%clk 0:02:51]} 10. a4 {[%clk 0:02:55]}  Be6 {[%clk 0:02:45]} 11. Ng5 {[%clk 0:02:51]}  Bc8 {[%clk 0:02:45]} 12. a5 {[%clk 0:02:38]}  h6 {[%clk 0:02:43]} 13. a6 {[%clk 0:02:37]}  c6 {[%clk 0:02:29]} 14. axb7 {[%clk 0:02:35]}  Bxb7 {[%clk 0:02:27]} 15. Ne6 {[%clk 0:02:34]}  Qd7 {[%clk 0:02:11]} 16. Nxf8 {[%clk 0:02:31]}  Bxf8 {[%clk 0:02:12]} 17. bxc6 {[%clk 0:02:28]}  Bxc6 {[%clk 0:02:11]} 18. Nd5 {[%clk 0:02:28]}  Bxd5 {[%clk 0:02:09]} 19. cxd5 {[%clk 0:02:27]}  a5 {[%clk 0:02:09]} 20. Qa4 {[%clk 0:02:27]}  Qxa4 {[%clk 0:01:56]} 21. Rxa4 {[%clk 0:02:26]}  Nbd7 {[%clk 0:01:57]} 22. Bd2 {[%clk 0:02:25]}  Nb6 {[%clk 0:01:54]} 23. Rxa5 {[%clk 0:02:24]}  Rxa5 {[%clk 0:01:54]} 24. Bxa5 {[%clk 0:02:24]}  Nbxd5 {[%clk 0:01:55]} 25. Rc1 {[%clk 0:02:20]}  Kg8 {[%clk 0:01:50]} 26. Bd8 {[%clk 0:02:15]}  Kf7 {[%clk 0:01:48]} 27. h3 {[%clk 0:02:13]}  Ke6 {[%clk 0:01:46]} 28. e3 {[%clk 0:02:03]}  Be7 {[%clk 0:01:45]} 29. Bxd5+ {[%clk 0:02:01]}  Nxd5 {[%clk 0:01:45]} 30. Bxe7 {[%clk 0:02:02]}  Kxe7 {[%clk 0:01:43]} 31. Kf1 {[%clk 0:02:01]}  g5 {[%clk 0:01:39]} 32. Ra1 {[%clk 0:02:01]}  Nf6 {[%clk 0:01:36]} 33. Ra7+ {[%clk 0:01:57]}  Ke6 {[%clk 0:01:36]} 34. Ke2 {[%clk 0:01:57]}  h5 {[%clk 0:01:34]} 35. Rg7 {[%clk 0:01:52]}  g4 {[%clk 0:01:34]} 36. h4 {[%clk 0:01:53]}  f4 {[%clk 0:01:21]} 37. Rg5 {[%clk 0:01:45]}  f3+ {[%clk 0:01:06]} 38. Kd2 {[%clk 0:01:43]}  Kf7 {[%clk 0:01:06]} 39. Kc3 {[%clk 0:01:30]}  Ke6 {[%clk 0:00:58]} 40. e4 {[%clk 0:01:26]}  d5 {[%clk 0:00:55]} 41. Rf5 {[%clk 0:01:05]}  dxe4 {[%clk 0:00:21]} 42. Rxf6+ {[%clk 0:01:05]}  Kxf6 {[%clk 0:00:21]} 43. dxe4 {[%clk 0:01:05]}  Ke6 {[%clk 0:00:21]} 44. Kc4 {[%clk 0:01:05]}  Kd6 {[%clk 0:00:20]} 45. Kb5 {[%clk 0:01:05]}  Kd7 {[%clk 0:00:20]} 46. Kc5 {[%clk 0:01:05]}  Ke6 {[%clk 0:00:21]} 47. Kc6 {[%clk 0:01:06]}  Ke7 {[%clk 0:00:21]} 48. Kd5 {[%clk 0:01:06]}  Kf6 {[%clk 0:00:22]} 49. Kd6 {[%clk 0:01:06]}  Kf7 {[%clk 0:00:23]} 50. Kxe5 {[%clk 0:01:06]}  Ke7 {[%clk 0:00:23]} 51. Kf5 {[%clk 0:01:06]}  Kf7 {[%clk 0:00:24]} 52. Kg5 {[%clk 0:01:06]}  Ke6 {[%clk 0:00:25]} 53. Kxh5 {[%clk 0:01:03]}  Ke5 {[%clk 0:00:26]} 54. Kxg4 {[%clk 0:01:04]}  Kxe4 {[%clk 0:00:26]} 55. h5 {[%clk 0:01:04]}  Kd3 {[%clk 0:00:27]} 56. Kxf3 {[%clk 0:01:04]}  Kd4 {[%clk 0:00:27]} 57. h6 {[%clk 0:01:04]}  Kd5 {[%clk 0:00:28]} 58. h7 {[%clk 0:01:05]}  Kc4 {[%clk 0:00:29]} 59. h8=Q {[%clk 0:01:06]}  Kb3 {[%clk 0:00:29]} 60. Qc8 {[%clk 0:01:06]}  Ka3 {[%clk 0:00:29]} 61. g4 {[%clk 0:01:05]}  Ka4 {[%clk 0:00:30]} 62. Ke4 {[%clk 0:01:05]}  Kb5 {[%clk 0:00:31]} 63. Kd5 {[%clk 0:01:05]}  Kb6 {[%clk 0:00:32]} 64. Qb8+ {[%clk 0:01:05]}  Ka6 {[%clk 0:00:32]} 65. Kc5 {[%clk 0:01:03]}  Ka5 {[%clk 0:00:33]} 66. Qb5# {[%clk 0:01:04]} 1-0


[Site "https://www.chess.com"]